bitfinex-derivatives/quotes_SOLF0:USTF0_20240925
["timestamp","ask_amount","ask_price","bid_price","bid_amount"]
[1727242064640,8.13,151.04,150.99,8.13]
[1727242064944,3.3108,151.02,150.99,8.13]
[1727242066539,3.3108,151.02,150.97,3.31655246]
[1727242066540,3.3109,151.01,150.97,3.3117]
[1727242066745,3.3109,151.01,150.98,8.13]
[1727242075654,3.3112,151.0,150.96,3.3118]
[1727242075851,3.3112,151.0,150.99,8.13]
[1727242079951,3.311,151.01,150.99,8.13]
[1727242080151,3.311,151.01,151.0,8.13]
[1727242082355,3.311,151.01,150.99,8.13]
[1727242095474,3.3107,151.02,151.0,8.13]
[1727242095675,3.3107,151.02,151.01,8.13]
[1727242097368,3.3107,151.02,151.0,8.13]
[1727242097673,3.3107,151.02,150.99,8.13]
[1727242098268,29.87521832,151.01,150.91,34.54107216]
[1727242098461,29.87521832,151.01,150.99,8.13]
[1727242098866,12.75011239,151.0,150.91,9.56286999]
[1727242099074,26.56441832,151.0,150.9,400.13853665]
[1727242099275,3.3108,151.01,150.99,8.13]
[1727242099473,12.61162281,151.0,150.99,8.13]
[1727242099872,12.61162281,151.0,150.99,1.18740883]
[1727242100176,3.3108,151.01,150.99,1.18740883]
[1727242100571,3.3108,151.01,150.9,403.36929059]
[1727242100769,3.3108,151.01,150.99,8.13]
[1727242101375,3.3108,151.01,150.99,1.07702843]
[1727242103176,8.13,151.03,150.9,403.36929059]
[1727242103383,8.13,151.0,150.93,8.13]
[1727242103980,8.13,150.98,150.89,63.12974522]
[1727242104183,8.13,150.98,150.92,8.13]
[1727242104782,3.312,150.96,150.92,11.4427]
[1727242105578,8.13,150.98,150.92,8.13]
[1727242105778,8.13,150.97,150.91,8.13]
[1727242106383,3.3123,150.95,150.92,13.02523474]
[1727242106677,3.3123,150.95,150.91,8.13]
[1727242106882,3.3123,150.95,150.92,13.0273493]
[1727242107080,3.3124,150.94,150.91,8.13]
[1727242107285,8.13,150.95,150.9,8.13]
[1727242107476,8.13,150.95,150.91,13.02730286]
[1727242107681,8.13,150.95,150.9,8.13]
[1727242107879,8.13,150.95,150.91,13.02727045]
[1727242108180,8.13,150.95,150.9,8.13]
[1727242108983,3.3126,150.93,150.9,8.13]
[1727242123590,9.4142,150.96,150.91,8.13]
[1727242124698,3.3123,150.95,150.91,11.4428]
[1727242125307,4.5962,150.96,150.93,8.13]
[1727242125794,1.2842,150.96,150.93,8.13]
[1727242126795,3.3121,150.95,150.93,8.13]
[1727242130405,4.5962,150.96,150.93,8.13]
[1727242130905,8.13,151.0,150.94,8.13]
[1727242132205,8.13,151.0,150.95,8.13]
[1727242133002,3.3116,150.98,150.95,11.442]
[1727242133699,3.3112,151.0,150.96,3.3117]
[1727242134007,105.17164486,151.01,150.96,3.3117]
[1727242134607,105.17164486,151.01,150.95,8.13]
[1727242135006,3.3114,150.99,150.95,11.4421]
[1727242135609,3.3115,150.98,150.95,11.4421]
[1727242146121,3.3118,150.97,150.95,8.13]
[1727242146326,3.3118,150.97,150.94,11.4423]
[1727242147417,8.13,150.97,150.93,8.13]
[1727242148024,3.312,150.96,150.93,8.13]
[1727242156726,3.3118,150.97,150.93,11.4426]
[1727242156927,3.3118,150.97,150.94,8.13]
[1727242157124,3.3118,150.97,150.94,11.4423]
[1727242157323,3.3116,150.98,150.94,8.13]
[1727242157626,8.13,150.99,150.94,8.13]
[1727242158330,3.3118,150.97,150.94,8.13]
[1727242159635,3.3121,150.96,150.93,8.13]
[1727242159934,8.13,150.98,150.93,8.13]
[1727242161538,3.3121,150.95,150.93,8.13]
[1727242164840,3.3124,150.94,150.91,8.13]
[1727242165137,8.13,150.94,150.88,8.13]
[1727242165334,8.13,150.94,150.89,13.02751199]
[1727242165530,8.13,150.94,150.9,13.02751199]
[1727242165733,8.13,150.93,150.88,11.50343408]
[1727242165927,8.13,150.93,150.89,5.96745406]
[1727242166133,8.13,150.93,150.88,11.50343408]
[1727242166334,3.3129,150.92,150.89,5.96761573]
[1727242166534,3.3129,150.92,150.88,14.81703408]
[1727242168141,3.3129,150.92,150.89,5.96845256]
[1727242168330,3.3129,150.92,150.88,14.81703408]
[1727242168537,3.3129,150.92,150.89,5.96819352]
[1727242168735,3.3129,150.92,150.88,14.81703408]
[1727242169038,3.3129,150.92,150.89,5.96819837]
[1727242169234,3.3129,150.92,150.88,14.81703408]
[1727242169441,3.3129,150.92,150.89,5.96915224]
[1727242169642,3.3129,150.92,150.88,14.81703408]
[1727242169843,3.3129,150.92,150.89,5.96915224]
[1727242170039,3.3129,150.92,150.88,14.81703408]
[1727242170240,3.3129,150.92,150.89,5.97020803]
[1727242170539,3.3129,150.92,150.9,8.13]
[1727242174937,3.313,150.91,150.9,8.13]
[1727242175747,3.313,150.91,150.88,3.3136]
[1727242175948,3.313,150.91,150.89,13.03884465]
[1727242176142,3.313,150.91,150.89,8.13]
[1727242177946,3.3129,150.92,150.89,8.13]
[1727242179652,8.13,150.92,150.84,8.25386987]
[1727242179944,8.13,150.9,150.87,13.0367867]
[1727242180245,3.3136,150.89,150.85,14.69137309]
[1727242180452,3.3136,150.89,150.87,5.97126994]
[1727242180645,3.3136,150.89,150.85,14.69137309]
[1727242180847,3.3136,150.89,150.87,5.97128133]
[1727242181046,3.3136,150.89,150.85,14.69137309]
[1727242184750,3.3136,150.89,150.86,71.26846057]
[1727242195362,3.3136,150.89,150.86,74.58256057]
[1727242197169,3.3133,150.9,150.86,74.58256057]
[1727242197363,3.3133,150.9,150.88,8.13]
[1727242200573,3.3133,150.9,150.86,66.45256057]
[1727242200574,3.3133,150.9,150.86,74.58256057]
[1727242203176,3.3131,150.91,150.89,8.13]
[1727242203381,9.4816,150.95,150.9,8.13]
[1727242203581,9.4816,150.95,150.9,11.4432]
[1727242203582,3.3126,150.94,150.9,11.4432]
[1727242205576,3.3123,150.95,150.91,8.13]
[1727242205881,3.3123,150.95,150.92,8.13]
[1727242206071,8.13,150.95,150.89,5.95823529]
[1727242206271,8.13,150.94,150.89,8.13]
[1727242206475,8.13,150.93,150.87,8.13]
[1727242206880,3.3132,150.91,150.87,11.4438]
[1727242207081,3.3132,150.91,150.87,8.13]
[1727242207380,8.13,150.93,150.87,8.13]
[1727242208379,3.3129,150.92,150.88,3.3136]
[1727242208580,3.3129,150.92,150.89,8.13]
[1727242209676,3.3129,150.92,150.89,11.4434]
[1727242210682,3.3126,150.93,150.9,8.13]
[1727242211576,3.3123,150.95,150.92,8.13]
[1727242212474,9.5109,150.97,150.92,8.13]
[1727242212475,3.3119,150.96,150.92,8.13]
[1727242213381,1.3809,150.97,150.94,8.13]
[1727242213682,4.6927,150.97,150.94,8.13]
[1727242213880,3.3118,150.97,150.94,8.13]
[1727242214880,3.3118,150.97,150.94,11.4423]
[1727242215786,3.3115,150.98,150.94,11.4423]
[1727242215986,8.13,150.99,150.94,11.4423]
[1727242216391,3.3119,150.97,150.94,8.13]
[1727242217183,3.3119,150.97,150.94,11.4424]
[1727242217378,8.13,150.99,150.94,11.4424]
[1727242217586,3.3115,150.98,150.94,8.13]
[1727242217785,3.3115,150.98,150.95,8.13]
[1727242218789,12.1287,151.0,150.96,8.13]
[1727242218790,1.2953,151.0,150.96,8.13]
[1727242218981,1.2953,151.0,150.97,8.13]
[1727242219888,4.6064,151.0,150.97,8.13]
[1727242220490,3.3111,151.0,150.97,11.4417]
[1727242221190,100.35244486,151.01,150.98,8.13]
[1727242221785,3.3111,151.0,150.98,8.13]
[1727242222500,3.3111,151.0,150.97,8.13]
[1727242223386,3.3109,151.01,150.99,8.13]
[1727242223787,8.13,151.03,150.99,8.13]
[1727242225785,3.311,151.01,150.99,8.13]
[1727242228589,8.13,151.03,150.98,8.13]
[1727242229490,3.3112,151.0,150.98,8.13]
[1727242229797,3.3112,151.0,150.99,8.13]
[1727242232595,3.3109,151.01,150.99,8.13]
[1727242239000,3.3109,151.01,151.0,8.13]
[1727242239605,97.02450747,151.14,151.0,8.13]
[1727242239809,8.13,151.09,151.05,8.13]
[1727242240198,3.3097,151.06,151.05,8.13]
[1727242241506,8.13,151.09,151.03,8.13]
[1727242241507,3.3101,151.05,151.03,8.13]
[1727242243406,4.0461,151.11,151.03,8.13]
[1727242243611,12.1761,151.11,151.06,8.13]
[1727242244001,4.0461,151.11,151.06,8.13]
[1727242244313,12.1761,151.11,151.06,8.13]
[1727242244812,3.3095,151.08,151.06,8.13]
[1727242245717,3.3095,151.07,151.06,8.13]
[1727242245910,3.3095,151.07,151.05,8.13]
[1727242246109,8.13,151.08,151.0,3.31655572]
[1727242246413,4.0461,151.11,151.03,8.13]
[1727242246414,3.3101,151.05,151.03,8.13]
[1727242250423,4.0461,151.11,151.04,8.13]
[1727242250617,8.13,151.1,151.05,8.13]
[1727242251018,3.3096,151.07,151.05,8.13]
[1727242251719,12.1761,151.11,151.06,8.13]
[1727242252524,3.3093,151.09,151.06,11.4397]
[1727242252715,3.3093,151.09,151.06,8.13]
[1727242252918,3.3095,151.08,151.06,8.13]
[1727242253124,12.1761,151.11,151.05,8.13]
[1727242254424,3.3096,151.07,151.05,8.13]
[1727242255826,4.0461,151.11,151.06,8.13]
[1727242256529,3.3092,151.09,151.06,8.13]
[1727242257727,3.3092,151.09,151.08,8.13]
[1727242259224,2.6939,151.11,151.08,8.13]
[1727242260330,3.309,151.1,151.08,8.13]
[1727242260532,97.02450747,151.14,151.09,8.13]
[1727242261429,3.3087,151.11,151.09,8.13]
[1727242262029,97.02450747,151.14,151.1,8.13]
[1727242262230,97.02450747,151.14,151.12,8.13]
[1727242262430,3.3084,151.13,151.12,8.13]
[1727242262932,97.02450747,151.14,151.12,8.13]
[1727242263136,100.33250747,151.14,151.12,8.13]
[1727242263930,3.3079,151.15,151.13,8.13]
[1727242264632,3.3076,151.16,151.13,8.13]
[1727242264838,3.3076,151.16,151.15,8.13]
[1727242265227,2.6334,151.21,151.15,8.13]
[1727242265431,1.3374,151.21,151.19,8.13]
[1727242265830,3.3067,151.2,151.19,8.13]
[1727242266030,9.4674,151.21,151.16,8.13]
[1727242266733,3.3073,151.18,151.16,8.13]
[1727242266942,9.4674,151.21,151.16,8.13]
[1727242267336,3.3073,151.18,151.16,8.13]
[1727242269238,3.3069,151.19,151.17,8.13]
[1727242269644,1.3374,151.21,151.17,8.13]
[1727242270943,8.13,151.19,151.1,63.04573654]
[1727242271335,8.13,151.19,151.13,8.13]
[1727242271845,3.3077,151.16,151.13,8.13]
[1727242274351,3.3077,151.16,151.15,8.13]
[1727242274949,3.3079,151.15,151.13,8.13]
[1727242275147,8.13,151.18,151.13,8.13]
[1727242275552,3.3079,151.15,151.13,8.13]
[1727242277657,3.3076,151.16,151.13,8.13]
[1727242278054,3.3078,151.15,151.13,8.13]
[1727242278456,8.13,151.19,151.14,8.13]
[1727242279553,8.13,151.2,151.14,8.13]
[1727242280759,3.3074,151.17,151.14,8.13]
[1727242281556,3.3076,151.16,151.13,8.13]
[1727242281856,8.13,151.19,151.13,8.13]
[1727242282055,3.308,151.15,151.13,8.13]
[1727242285451,3.308,151.15,151.11,3.3085]
[1727242285656,3.308,151.15,151.13,8.13]
[1727242288858,3.308,151.14,151.13,8.13]
[1727242289251,3.308,151.14,151.1,66.35453654]
[1727242289455,3.308,151.14,151.12,8.13]
[1727242289757,3.3082,151.13,151.12,8.13]
[1727242290659,1.3874,151.16,151.12,8.13]
[1727242290660,3.3081,151.14,151.12,8.13]
[1727242294961,3.3082,151.13,151.1,63.04573654]
[1727242295164,8.13,151.15,151.1,71.17573654]
[1727242296364,3.3084,151.13,151.1,71.17573654]
[1727242297960,3.3084,151.13,151.1,74.48453654]
[1727242299569,3.3085,151.12,151.1,71.17573654]
[1727242300873,1.3874,151.16,151.11,8.13]
[1727242301073,1.3874,151.16,151.1,63.04573654]
[1727242301074,1.3874,151.16,151.13,8.13]
[1727242302471,3.3079,151.15,151.13,8.13]
[1727242305974,4.695,151.16,151.13,8.13]
[1727242306172,1.3874,151.16,151.13,8.13]
[1727242306578,3.3079,151.15,151.13,8.13]
[1727242310268,4.695,151.16,151.13,11.4382]
[1727242310475,1.3874,151.16,151.13,8.13]
[1727242311775,3.3078,151.15,151.13,8.13]
[1727242312177,9.5136,151.18,151.13,8.13]
[1727242312578,1.3836,151.18,151.14,8.13]
[1727242312778,8.13,151.19,151.14,8.13]
[1727242313078,3.3075,151.17,151.14,11.4379]
[1727242314078,3.3075,151.16,151.14,8.13]
[1727242318388,2.6876,151.21,151.14,8.13]
[1727242318587,9.14247263,151.2,151.14,8.13]
[1727242318781,8.13,151.2,151.14,8.13]
[1727242319287,3.3074,151.17,151.14,11.4379]
[1727242321282,8.13,151.18,151.13,8.13]
[1727242324184,3.3077,151.16,151.13,11.4382]
[1727242325486,3.3077,151.16,151.13,3.3082]
[1727242325683,3.308,151.14,151.08,1.2888]
[1727242325886,8.13,151.15,151.1,8.13]
[1727242326487,8.13,151.15,151.08,1.2888]
[1727242326685,8.13,151.15,151.09,21.1604225]
[1727242326881,8.13,151.13,151.1,13.0304225]
[1727242327088,8.13,151.12,151.07,8.13]
[1727242327287,8.13,151.12,151.08,13.03733363]
[1727242327488,8.13,151.12,151.07,8.13]
[1727242327693,3.3089,151.1,151.08,13.03748559]
[1727242327991,3.3089,151.1,151.07,8.13]
[1727242328186,3.3089,151.1,151.08,13.04264191]
[1727242328392,3.3089,151.1,151.07,8.13]
[1727242328590,3.3089,151.1,151.05,82.64001221]
[1727242328591,3.3091,151.09,151.08,5.97402306]
[1727242328787,3.3091,151.09,151.06,8.13]
[1727242328987,3.3091,151.09,151.07,13.04333192]
[1727242329186,3.3091,151.09,151.06,8.13]
[1727242329392,3.3091,151.09,151.07,13.04137385]
[1727242329593,3.3091,151.09,151.06,8.13]
[1727242329892,3.3091,151.09,151.07,13.0413919]
[1727242330090,3.3091,151.09,151.06,8.13]
[1727242330292,3.3091,151.09,151.07,13.03945656]
[1727242330486,3.3097,151.07,151.05,79.4]
[1727242330686,3.3097,151.07,151.06,5.97342966]
[1727242330889,3.3097,151.07,151.05,87.53]
[1727242331687,8.13,151.12,151.06,8.13]
[1727242331891,8.13,151.12,151.07,14.10227192]
[1727242332092,3.3091,151.1,151.07,8.13]
[1727242332390,8.13,151.12,151.07,8.13]
[1727242332795,3.309,151.1,151.07,8.13]
[1727242333798,3.3091,151.09,151.07,8.13]
[1727242334098,8.13,151.12,151.07,8.13]
[1727242335202,3.3089,151.1,151.07,8.13]
[1727242335800,3.3088,151.11,151.07,11.4393]
[1727242336006,8.13,151.13,151.07,3.3093]
[1727242336197,8.13,151.12,151.07,11.4393]
[1727242336802,3.3089,151.1,151.07,11.4393]
[1727242337699,3.3089,151.1,151.07,8.13]
[1727242337902,3.3091,151.09,151.07,8.13]
[1727242338101,8.13,151.12,151.07,8.13]
[1727242338301,3.3092,151.09,151.07,8.13]
[1727242338502,8.13,151.13,151.07,8.13]
[1727242340399,3.3091,151.09,151.07,8.13]
[1727242341701,3.309,151.1,151.07,8.13]
[1727242342406,3.309,151.1,151.07,11.4394]
[1727242347412,3.3087,151.11,151.08,3.3092]
[1727242347606,3.3087,151.11,151.08,11.4392]
[1727242347811,8.13,151.13,151.08,8.13]
[1727242348017,8.13,151.13,151.1,8.13]
[1727242348808,3.3085,151.12,151.1,8.13]
[1727242351315,3.3085,151.12,151.09,3.3091]
[1727242351516,3.3088,151.11,151.08,8.13]
[1727242352018,3.3085,151.12,151.09,3.3091]
[1727242352517,3.3087,151.11,151.08,11.4393]
[1727242357319,3.3087,151.11,151.08,3.3093]
[1727242357624,3.3087,151.11,151.08,11.4393]
[1727242359725,3.3087,151.11,151.08,3.3093]
[1727242359924,3.3087,151.11,151.09,8.13]
[1727242362527,8.13,151.13,151.06,3.33046414]
[1727242362822,8.13,151.11,151.07,13.02763625]
[1727242363022,3.3093,151.09,151.05,8.13]
[1727242363524,3.3093,151.09,151.06,13.02829056]
[1727242363719,8.13,151.1,151.06,7.06100135]
[1727242363923,8.13,151.1,151.07,5.96736717]
[1727242364120,8.13,151.09,151.02,8.24576004]
[1727242364327,8.13,151.08,151.03,13.02961399]
[1727242364520,8.13,151.08,151.01,71.21123316]
[1727242364723,9.4615,151.08,151.02,13.03050971]
[1727242364929,9.4615,151.08,151.01,74.52193316]
[1727242364930,8.13,151.06,151.01,74.52193316]
[1727242365125,8.13,151.06,151.02,5.96868367]
[1727242365319,8.13,151.06,151.01,74.52193316]
[1727242365519,8.13,151.06,151.02,5.96721789]
[1727242365719,8.13,151.06,151.01,74.52193316]
[1727242365928,10.8048,151.08,151.03,8.13]
[1727242367124,3.3099,151.06,151.03,8.13]
[1727242368527,1.3315,151.08,151.05,8.13]
[1727242369124,1.3427,151.09,151.05,11.4399]
[1727242369934,4.6519,151.09,151.05,11.4399]
[1727242372029,4.6519,151.09,151.05,3.3099]
[1727242372225,4.6519,151.09,151.06,8.13]
[1727242372432,4.6519,151.09,151.06,11.4397]
[1727242376236,4.6519,151.09,151.06,3.3097]
[1727242376426,4.6519,151.09,151.06,11.4397]
[1727242380431,4.6519,151.09,151.06,8.13]
[1727242380839,9.4727,151.09,151.03,3.3103]
[1727242381138,8.13,151.08,151.03,8.13]
[1727242381533,3.3099,151.06,151.03,8.13]
[1727242382032,8.13,151.05,151.01,63.08123316]
[1727242383539,3.3103,151.04,151.01,63.08123316]
[1727242384140,3.3103,151.04,151.01,74.52193316]
[1727242386540,3.3103,151.04,151.01,71.21123316]
[1727242387341,3.3104,151.03,151.01,63.08123316]
[1727242393459,8.13,151.05,151.01,63.08123316]
[1727242393460,3.3102,151.04,151.01,63.08123316]
[1727242399546,3.3102,151.04,151.01,66.39203316]
[1727242400456,3.3102,151.04,151.01,63.08123316]
[1727242401360,11.4405,151.03,151.01,63.08123316]
[1727242401558,11.4405,151.03,150.99,3.3112]
[1727242401857,11.4405,151.03,151.0,5.9616819]
[1727242402055,1.3029,151.08,150.98,11.4415]
[1727242402262,8.13,151.02,150.99,13.01558643]
[1727242402557,8.13,151.02,150.98,11.4415]
[1727242402956,8.13,151.02,150.99,5.96138225]
[1727242403256,11.4408,151.02,150.99,11.92276573]
[1727242403457,11.4408,151.02,150.99,5.96138225]
[1727242403655,3.3109,151.01,150.99,5.96138225]
[1727242403851,8.13,151.01,150.99,5.96138225]
[1727242404056,8.13,151.01,150.99,13.01510987]
[1727242404855,11.441,151.01,150.99,13.01510987]
[1727242409161,3.311,151.01,150.99,13.01510987]
[1727242411770,3.311,151.01,150.99,7.05372762]
[1727242411961,3.311,151.01,150.98,3.3115]
[1727242415372,8.13,151.02,150.97,3.3116]
[1727242415373,3.3111,151.0,150.97,3.3116]
[1727242415563,11.4411,151.0,150.97,3.3116]
[1727242416566,11.4411,151.0,150.96,3.3119]
[1727242416567,3.3113,150.99,150.96,3.3119]
[1727242421778,3.3111,151.0,150.97,3.3117]
[1727242422378,12.7463,151.01,150.97,3.3117]
[1727242430384,12.7463,151.01,150.98,3.3115]
[1727242431280,8.13,151.0,150.97,3.3116]
[1727242446798,8.13,151.0,150.98,5.96836972]
[1727242447098,8.13,151.0,150.97,3.3116]
[1727242447397,1.3029,151.08,150.99,8.13]
[1727242447597,8.13,151.04,151.0,8.13]
[1727242447799,8.13,151.04,151.0,14.09900434]
[1727242448000,8.13,151.04,151.0,8.13]
[1727242448901,3.3104,151.03,151.0,11.441]
[1727242449602,3.3104,151.03,151.01,5.97022859]
[1727242449801,3.3104,151.03,151.0,11.441]
[1727242450096,3.3104,151.03,151.01,5.97022859]
[1727242450294,3.3104,151.03,151.0,11.441]
[1727242450494,3.3104,151.03,151.01,5.97020886]
[1727242450802,11.4404,151.03,150.99,3.3112]
[1727242451102,11.4404,151.03,151.0,5.97151006]
[1727242451399,11.4404,151.03,151.01,5.97151006]
[1727242451600,11.4404,151.03,150.99,3.3112]
[1727242451798,11.4404,151.03,151.0,5.97186429]
[1727242452097,11.4404,151.03,151.01,5.97186429]
[1727242452299,11.4404,151.03,150.99,3.3112]
[1727242452599,11.4404,151.03,151.0,5.97202016]
[1727242452798,11.4404,151.03,151.01,5.97202016]
[1727242452994,11.4404,151.03,150.99,3.3112]
[1727242453198,11.4404,151.03,151.0,5.97204615]
[1727242453397,11.4404,151.03,151.01,5.97204615]
[1727242453597,11.4404,151.03,150.99,3.3112]
[1727242453800,11.4404,151.03,151.0,12.7999172]
[1727242454001,11.4404,151.03,150.99,3.3112]
[1727242454394,11.4404,151.03,151.0,12.79991647]
[1727242454708,3.3106,151.02,151.01,5.97243652]
[1727242455001,8.13,151.02,151.0,5.97229767]
[1727242455704,1.3046,151.01,151.0,5.97229767]
[1727242455899,4.6154,151.01,151.0,5.97229767]
[1727242458796,4.6154,151.01,151.0,1.72229767]
[1727242458997,3.3119,150.96,150.86,338.0]
[1727242459205,3.3119,150.96,150.9,22.38976411]
[1727242459499,3.3119,150.96,150.91,33.90090893]
[1727242459700,3.3119,150.96,150.92,22.38976411]
[1727242459999,3.3119,150.96,150.93,22.38976411]
[1727242460203,3.3119,150.96,150.94,6.83081912]
[1727242460398,11.4418,150.97,150.95,6.83081912]
[1727242460598,11.4418,150.97,150.93,3.3126]
[1727242460794,11.4418,150.97,150.94,6.8305989]
[1727242460999,11.4418,150.97,150.95,6.8305989]
[1727242461199,11.4418,150.97,150.93,3.3126]
[1727242461399,11.4418,150.97,150.94,6.8300979]
[1727242461605,11.4418,150.97,150.95,6.8300979]
[1727242461804,11.4418,150.97,150.93,3.3126]
[1727242461995,11.4418,150.97,150.94,6.83040624]
[1727242462201,11.4418,150.97,150.95,6.83040624]
[1727242462500,11.4418,150.97,150.93,3.3126]
[1727242462697,11.4418,150.97,150.94,6.83029822]
[1727242462903,11.4418,150.97,150.95,6.83029822]
[1727242463108,11.4418,150.97,150.93,3.3126]
[1727242463300,11.4418,150.97,150.94,6.82986329]
[1727242463507,11.4418,150.97,150.95,6.82986329]
[1727242463705,11.4418,150.97,150.93,3.3126]
[1727242463906,11.4418,150.97,150.94,6.83028414]
[1727242464101,11.4418,150.97,150.95,6.83028414]
[1727242464297,11.4418,150.97,150.93,3.3126]
[1727242464499,11.4418,150.97,150.94,6.83031488]
[1727242464702,11.4418,150.97,150.95,6.83031488]
[1727242465009,11.4418,150.97,150.93,3.3126]
[1727242465203,11.4418,150.97,150.94,6.83031561]
[1727242465508,11.4418,150.97,150.95,6.83031561]
[1727242465710,3.3118,150.97,150.93,11.4426]
[1727242466006,11.4416,150.98,150.94,10.14269775]
[1727242466211,3.3116,150.98,150.95,6.83039775]
[1727242466403,3.3116,150.98,150.94,11.4423]
[1727242466597,3.3116,150.98,150.95,6.83058409]
[1727242466802,3.3116,150.98,150.94,11.4423]
[1727242467005,3.3116,150.98,150.95,6.83058409]
[1727242467205,3.3116,150.98,150.94,11.4423]
[1727242467406,3.3116,150.98,150.95,6.83082204]
[1727242467608,3.3116,150.98,150.94,11.4423]
[1727242467803,3.3116,150.98,150.95,6.83081719]
[1727242467999,3.3116,150.98,150.94,11.4423]
[1727242468197,3.3116,150.98,150.95,6.83081713]
[1727242468399,3.3116,150.98,150.94,11.4423]
[1727242468599,3.3116,150.98,150.95,6.83114772]
[1727242468809,3.3116,150.98,150.94,11.4423]
[1727242469009,11.4413,150.99,150.95,10.14291431]
[1727242469210,11.4413,150.99,150.96,6.83081431]
[1727242469404,11.4413,150.99,150.95,3.3121]
[1727242469604,11.4413,150.99,150.96,6.83135669]
[1727242469804,11.4413,150.99,150.95,3.3121]
[1727242470007,11.4413,150.99,150.96,6.83122659]
[1727242470205,11.4413,150.99,150.95,3.3121]
[1727242470507,11.4411,151.0,150.96,3.3119]
[1727242470900,11.4411,151.0,150.97,5.8954676]
[1727242471106,11.4411,151.0,150.96,3.3119]
[1727242471310,11.4411,151.0,150.97,5.8954676]
[1727242471512,11.4411,151.0,150.96,3.3119]
[1727242471710,11.4411,151.0,150.97,5.89598723]
[1727242471907,11.4411,151.0,150.96,3.3119]
[1727242474013,2.5985,151.01,150.97,8.13]
[1727242474310,1.3134,151.07,151.0,8.13]
[1727242474519,8.13,151.06,151.01,8.13]
[1727242475110,3.31,151.05,151.02,9.20487528]
[1727242475308,8.13,151.06,151.02,3.3106]
[1727242476417,11.4399,151.06,151.02,3.3106]
[1727242476810,3.3099,151.06,151.03,8.13]
[1727242478719,3.31,151.05,151.03,8.13]
[1727242481825,10.8063,151.07,151.03,8.13]
[1727242482531,3.3099,151.05,151.03,8.13]
[1727242490625,3.3102,151.04,151.03,8.13]
[1727242490824,3.3102,151.04,151.01,11.4407]
[1727242492331,3.3104,151.03,151.0,3.311]
[1727242492534,3.3104,151.03,151.01,8.13]
[1727242493436,3.3103,151.04,151.01,8.13]
[1727242498731,3.3103,151.04,151.02,8.13]
[1727242499036,3.31,151.05,151.02,8.13]
[1727242499730,3.3098,151.06,151.02,8.13]
[1727242499930,96.99657253,151.1,151.05,8.13]
[1727242500132,105.12657253,151.1,151.05,8.13]
[1727242501138,8.13,151.09,151.05,8.13]
[1727242501330,8.13,151.09,151.04,3.31]
[1727242502133,8.13,151.09,151.03,11.4404]
[1727242503243,8.13,151.06,150.92,17.64971788]
[1727242503445,8.13,151.06,151.0,8.13]
[1727242503736,8.13,151.06,151.01,12.6965829]
[1727242503938,3.31,151.05,151.01,8.13]
[1727242504735,3.31,151.05,151.01,11.4407]
[1727242506642,3.3102,151.04,151.01,11.4407]
[1727242508143,3.31,151.05,151.01,11.4407]
[1727242509942,3.3102,151.04,151.01,11.4407]
[1727242512346,3.31,151.05,151.01,11.4407]